[Event "Early-Titled-Tuesday-Blitz-March-26-2024"]
[Site "Chess.com"]
[Date "2024.03.26"]
[Round "5"]
[White "Hope_6"]
[Black "JJDAREK"]
[Result "1-0"]
[WhiteElo "2687"]
[BlackElo "2383"]
[TimeControl "180+1"]
[EndTime "8:54:39 PDT"]
[Termination "Hope_6 won on time"]

1. d4 {[%clk 0:03:00.9]} 1... d6 {[%clk 0:03:00.1]} 2. c4 {[%clk 0:03:00.5]}
2... e5 {[%clk 0:02:59.3]} 3. dxe5 {[%clk 0:02:54.9]} 3... dxe5 {[%clk
0:02:59.2]} 4. Qc2 {[%clk 0:02:55.4]} 4... Nc6 {[%clk 0:02:58.5]} 5. Nc3 {[%clk
0:02:34.1]} 5... Nd4 {[%clk 0:02:38.8]} 6. Qb1 {[%clk 0:02:29.8]} 6... Bf5
{[%clk 0:02:12.6]} 7. e4 {[%clk 0:02:25.5]} 7... Be6 {[%clk 0:02:12.4]} 8. Be3
{[%clk 0:02:18.7]} 8... c6 {[%clk 0:02:10.1]} 9. Nf3 {[%clk 0:02:09.3]} 9...
Nxf3+ {[%clk 0:02:07.5]} 10. gxf3 {[%clk 0:02:10.2]} 10... Ne7 {[%clk 0:01:58]}
11. Qc2 {[%clk 0:02:01.5]} 11... Ng6 {[%clk 0:01:56.1]} 12. Rd1 {[%clk
0:01:59.6]} 12... Qc7 {[%clk 0:01:53.1]} 13. Be2 {[%clk 0:01:51]} 13... Be7
{[%clk 0:01:45.6]} 14. O-O {[%clk 0:01:49.5]} 14... O-O {[%clk 0:01:45]} 15. Kh1
{[%clk 0:01:49.1]} 15... Rad8 {[%clk 0:01:40.6]} 16. a3 {[%clk 0:01:43.1]} 16...
Nf4 {[%clk 0:01:33.2]} 17. b4 {[%clk 0:01:31.9]} 17... a5 {[%clk 0:01:27.7]} 18.
c5 {[%clk 0:01:20.3]} 18... axb4 {[%clk 0:01:27.1]} 19. axb4 {[%clk 0:01:19.9]}
19... Bh3 {[%clk 0:01:21.8]} 20. Rg1 {[%clk 0:01:16.8]} 20... Rxd1 {[%clk
0:01:10.5]} 21. Nxd1 {[%clk 0:01:05.7]} 21... h6 {[%clk 0:01:06]} 22. Bxf4
{[%clk 0:01:03.2]} 22... exf4 {[%clk 0:01:05.2]} 23. Nb2 {[%clk 0:01:01.3]}
23... Rd8 {[%clk 0:01:00.7]} 24. Nc4 {[%clk 0:00:59.5]} 24... Bf6 {[%clk
0:00:57.3]} 25. Nd6 {[%clk 0:00:45.1]} 25... Be5 {[%clk 0:00:51]} 26. Nc4 {[%clk
0:00:29.3]} 26... Bd4 {[%clk 0:00:49.8]} 27. Bd3 {[%clk 0:00:23.1]} 27... Bf6
{[%clk 0:00:47.5]} 28. Qe2 {[%clk 0:00:20.2]} 28... Be6 {[%clk 0:00:25.7]} 29.
e5 {[%clk 0:00:16.4]} 29... Bg5 {[%clk 0:00:22.5]} 30. Qe4 {[%clk 0:00:14.9]}
30... g6 {[%clk 0:00:22]} 31. Nd6 {[%clk 0:00:14]} 31... Ra8 {[%clk 0:00:19.1]}
32. h4 {[%clk 0:00:12.8]} 32... Bd5 {[%clk 0:00:15.6]} 33. Qe2 {[%clk
0:00:10.9]} 33... Bxh4 {[%clk 0:00:14.7]} 34. Rg4 {[%clk 0:00:08.7]} 34... g5
{[%clk 0:00:14]} 35. Kg2 {[%clk 0:00:07.9]} 35... Ra2 {[%clk 0:00:12.7]} 36. Qd1
{[%clk 0:00:06.5]} 36... Qd8 {[%clk 0:00:11.1]} 37. Be2 {[%clk 0:00:05.8]} 37...
Qa8 {[%clk 0:00:10.1]} 38. Qd3 {[%clk 0:00:05.8]} 38... Ra3 {[%clk 0:00:07.9]}
39. Qf5 {[%clk 0:00:05.1]} 39... Ra2 {[%clk 0:00:05.8]} 40. Rxh4 {[%clk
0:00:05.3]} 40... gxh4 {[%clk 0:00:05.1]} 41. Qg4+ {[%clk 0:00:05.4]} 41... Kf8
{[%clk 0:00:05.1]} 42. Bd3 {[%clk 0:00:05.8]} 42... Qa3 {[%clk 0:00:04]} 43. Bf5
{[%clk 0:00:04.1]} 43... Qb2 {[%clk 0:00:02.4]} 44. Qxh4 {[%clk 0:00:04.4]} 1-0

[Event "Early-Titled-Tuesday-Blitz-March-26-2024"]
[Site "Chess.com"]
[Date "2024.03.26"]
[Round "5"]
[White "Davidalhesa2007"]
[Black "rcmz"]
[Result "1/2-1/2"]
[WhiteElo "1870"]
[BlackElo "2211"]
[TimeControl "180+1"]
[EndTime "8:54:39 PDT"]
[Termination "Game drawn by repetition"]

1. d4 {[%clk 0:03:00.9]} 1... d6 {[%clk 0:02:58.5]} 2. Nc3 {[%clk 0:02:59.8]}
2... Nd7 {[%clk 0:02:58.2]} 3. Bf4 {[%clk 0:03:00]} 3... h6 {[%clk 0:02:56.8]}
4. e3 {[%clk 0:02:58.9]} 4... g5 {[%clk 0:02:56.5]} 5. Bg3 {[%clk 0:02:58.3]}
5... Bg7 {[%clk 0:02:57.4]} 6. Bd3 {[%clk 0:02:56.6]} 6... c6 {[%clk 0:02:53.8]}
7. f3 {[%clk 0:02:55.5]} 7... Ngf6 {[%clk 0:02:51.8]} 8. Nge2 {[%clk 0:02:55.2]}
8... e5 {[%clk 0:02:51.3]} 9. dxe5 {[%clk 0:02:53]} 9... dxe5 {[%clk 0:02:51.3]}
10. e4 {[%clk 0:02:51.2]} 10... Qe7 {[%clk 0:02:40.6]} 11. Qd2 {[%clk
0:02:38.7]} 11... Nf8 {[%clk 0:02:38.9]} 12. O-O-O {[%clk 0:02:35.8]} 12... Ng6
{[%clk 0:02:37.9]} 13. Bf2 {[%clk 0:02:31.9]} 13... Be6 {[%clk 0:02:37.2]} 14.
Qe3 {[%clk 0:02:26.7]} 14... b6 {[%clk 0:02:36.1]} 15. Kb1 {[%clk 0:02:20.7]}
15... Nf4 {[%clk 0:02:25.9]} 16. Nxf4 {[%clk 0:02:19.2]} 16... exf4 {[%clk
0:02:21.5]} 17. Qe2 {[%clk 0:02:18.5]} 17... Rd8 {[%clk 0:02:18.1]} 18. Bc4
{[%clk 0:02:17.6]} 18... Nd7 {[%clk 0:02:10.7]} 19. Bd4 {[%clk 0:01:28]} 19...
Ne5 {[%clk 0:02:04.3]} 20. Bxe5 {[%clk 0:00:54]} 20... Bxe5 {[%clk 0:02:02.6]}
21. Rxd8+ {[%clk 0:00:52.1]} 21... Kxd8 {[%clk 0:01:58.4]} 22. Rd1+ {[%clk
0:00:50.3]} 22... Kc7 {[%clk 0:01:57.2]} 23. Bxe6 {[%clk 0:00:20.5]} 23... Qxe6
{[%clk 0:01:54.4]} 24. Qa6 {[%clk 0:00:18.5]} 24... Kb8 {[%clk 0:01:47.5]} 25.
Qd3 {[%clk 0:00:17]} 25... Kc7 {[%clk 0:01:24]} 26. Qa6 {[%clk 0:00:13.8]} 26...
Kb8 {[%clk 0:01:17.2]} 27. Qd3 {[%clk 0:00:11.2]} 27... b5 {[%clk 0:01:12.3]}
28. Qd7 {[%clk 0:00:05.5]} 28... Bxc3 {[%clk 0:01:02.6]} 29. Qxe6 {[%clk
0:00:01.3]} 29... fxe6 {[%clk 0:01:00.3]} 30. bxc3 {[%clk 0:00:02.2]} 30... Kc7
{[%clk 0:00:58.4]} 31. e5 {[%clk 0:00:02.6]} 31... Re8 {[%clk 0:00:44.1]} 32.
Rd2 {[%clk 0:00:02.1]} 32... Rd8 {[%clk 0:00:37.9]} 33. Rxd8 {[%clk 0:00:01.6]}
33... Kxd8 {[%clk 0:00:37.3]} 34. c4 {[%clk 0:00:02.5]} 34... b4 {[%clk
0:00:30.2]} 35. c3 {[%clk 0:00:03]} 35... a5 {[%clk 0:00:28.7]} 36. cxb4 {[%clk
0:00:03.4]} 36... axb4 {[%clk 0:00:28.1]} 37. a3 {[%clk 0:00:04.1]} 37... bxa3
{[%clk 0:00:25.1]} 38. Ka2 {[%clk 0:00:04.7]} 38... Kc7 {[%clk 0:00:25.4]} 39.
Kxa3 {[%clk 0:00:05.3]} 39... Kb6 {[%clk 0:00:25.6]} 40. Kb4 {[%clk 0:00:05.9]}
40... Ka6 {[%clk 0:00:22.8]} 41. Ka4 {[%clk 0:00:06.2]} 41... Kb6 {[%clk
0:00:22.5]} 42. Kb4 {[%clk 0:00:04.2]} 42... c5+ {[%clk 0:00:22.5]} 43. Ka4
{[%clk 0:00:02.7]} 43... Ka6 {[%clk 0:00:22.6]} 44. g3 {[%clk 0:00:02.6]} 44...
Kb6 {[%clk 0:00:18]} 45. g4 {[%clk 0:00:02.8]} 45... Ka6 {[%clk 0:00:13.2]} 46.
h3 {[%clk 0:00:02]} 46... Kb6 {[%clk 0:00:12.8]} 47. Ka3 {[%clk 0:00:02.3]}
47... Ka5 {[%clk 0:00:12.5]} 48. Kb3 {[%clk 0:00:02.4]} 48... Kb6 {[%clk
0:00:11.8]} 49. Ka4 {[%clk 0:00:03.1]} 49... Ka6 {[%clk 0:00:12]} 50. Ka3 {[%clk
0:00:03.5]} 50... Ka5 {[%clk 0:00:11.9]} 51. Kb3 {[%clk 0:00:04.1]} 51... Kb6
{[%clk 0:00:11.9]} 52. Ka4 {[%clk 0:00:04.8]} 52... Ka6 {[%clk 0:00:12]} 53. Ka3
{[%clk 0:00:05.4]} 53... Ka5 {[%clk 0:00:12.3]} 1/2-1/2

[Event "Early-Titled-Tuesday-Blitz-March-26-2024"]
[Site "Chess.com"]
[Date "2024.03.26"]
[Round "5"]
[White "Aradhya2000"]
[Black "wonderfultime"]
[Result "0-1"]
[WhiteElo "2745"]
[BlackElo "2999"]
[TimeControl "180+1"]
[EndTime "8:54:40 PDT"]
[Termination "wonderfultime won by checkmate"]

1. d4 {[%clk 0:03:00.9]} 1... d5 {[%clk 0:02:55.6]} 2. c4 {[%clk 0:03:01.4]}
2... c6 {[%clk 0:02:53.8]} 3. Nf3 {[%clk 0:03:00.8]} 3... Nf6 {[%clk 0:02:54.1]}
4. Nc3 {[%clk 0:03:00.8]} 4... a6 {[%clk 0:02:54.5]} 5. e3 {[%clk 0:02:57.1]}
5... Bf5 {[%clk 0:02:54.2]} 6. Nh4 {[%clk 0:02:54.4]} 6... Be4 {[%clk
0:02:52.4]} 7. f3 {[%clk 0:02:26.6]} 7... Bg6 {[%clk 0:02:51.8]} 8. Qb3 {[%clk
0:02:24.6]} 8... Ra7 {[%clk 0:02:27.1]} 9. Bd2 {[%clk 0:02:24.1]} 9... e6 {[%clk
0:02:25.6]} 10. Nxg6 {[%clk 0:02:23.8]} 10... hxg6 {[%clk 0:02:25.7]} 11. O-O-O
{[%clk 0:02:23.1]} 11... dxc4 {[%clk 0:02:23.1]} 12. Bxc4 {[%clk 0:02:21.9]}
12... b5 {[%clk 0:02:23.6]} 13. Be2 {[%clk 0:02:21.9]} 13... c5 {[%clk
0:02:24.1]} 14. dxc5 {[%clk 0:02:06.5]} 14... Bxc5 {[%clk 0:02:25]} 15. Kb1
{[%clk 0:01:58.7]} 15... Rd7 {[%clk 0:02:22.9]} 16. Qc2 {[%clk 0:00:56.9]} 16...
O-O {[%clk 0:02:18]} 17. e4 {[%clk 0:00:57]} 17... Nc6 {[%clk 0:01:53.7]} 18.
Nxb5 {[%clk 0:00:55]} 18... Qb6 {[%clk 0:01:50.5]} 19. Nc3 {[%clk 0:00:39.8]}
19... Bd4 {[%clk 0:00:33.7]} 20. Na4 {[%clk 0:00:37.9]} 20... Qb7 {[%clk
0:00:34.1]} 21. Nc5 {[%clk 0:00:32]} 21... Bxc5 {[%clk 0:00:34.3]} 22. Qxc5
{[%clk 0:00:32.7]} 22... Rc8 {[%clk 0:00:35]} 23. Bc3 {[%clk 0:00:30.9]} 23...
Nd4 {[%clk 0:00:27.2]} 24. Qxd4 {[%clk 0:00:26.8]} 24... Rxd4 {[%clk 0:00:27.5]}
25. Bxd4 {[%clk 0:00:26.9]} 25... Nxe4 {[%clk 0:00:24.4]} 26. Rhe1 {[%clk
0:00:11.6]} 26... Nf6 {[%clk 0:00:18.1]} 27. b3 {[%clk 0:00:11.7]} 27... Nd5
{[%clk 0:00:18.4]} 28. Ka1 {[%clk 0:00:12]} 28... Nb4 {[%clk 0:00:18.1]} 29. Kb2
{[%clk 0:00:08.9]} 29... Rc2+ {[%clk 0:00:17.7]} 30. Kb1 {[%clk 0:00:08.6]}
30... Rxa2 {[%clk 0:00:16.4]} 31. Bc3 {[%clk 0:00:08.7]} 31... Nd5 {[%clk
0:00:12.2]} 32. Kxa2 {[%clk 0:00:06.2]} 32... Nxc3+ {[%clk 0:00:12.9]} 33. Kb2
{[%clk 0:00:06.9]} 33... Nxd1+ {[%clk 0:00:13.6]} 34. Rxd1 {[%clk 0:00:07.7]}
34... a5 {[%clk 0:00:14.1]} 35. Rd4 {[%clk 0:00:05]} 35... Qc7 {[%clk
0:00:13.3]} 36. Bd3 {[%clk 0:00:02.6]} 36... Qxh2 {[%clk 0:00:12.1]} 37. Kc3
{[%clk 0:00:03.4]} 37... Qxg2 {[%clk 0:00:07.3]} 38. Be4 {[%clk 0:00:03.7]}
38... f5 {[%clk 0:00:06.3]} 39. Bc6 {[%clk 0:00:03.2]} 39... Qf2 {[%clk
0:00:05.4]} 40. Rd8+ {[%clk 0:00:02.2]} 40... Kh7 {[%clk 0:00:05.2]} 41. Rc8
{[%clk 0:00:02.6]} 41... Qc5+ {[%clk 0:00:05.2]} 42. Kb2 {[%clk 0:00:02.6]}
42... Qd4+ {[%clk 0:00:05.6]} 43. Ka3 {[%clk 0:00:02.6]} 43... Qa1# {[%clk
0:00:05.3]} 0-1

[Event "Early-Titled-Tuesday-Blitz-March-26-2024"]
[Site "Chess.com"]
[Date "2024.03.26"]
[Round "5"]
[White "AnaKuchava"]
[Black "MNyuyu"]
[Result "1/2-1/2"]
[WhiteElo "2142"]
[BlackElo "2410"]
[TimeControl "180+1"]
[EndTime "8:54:43 PDT"]
[Termination "Game drawn - insufficient material"]

1. d4 {[%clk 0:03:00.9]} 1... d5 {[%clk 0:03:00.4]} 2. Nf3 {[%clk 0:02:59.4]}
2... e6 {[%clk 0:03:00.9]} 3. c4 {[%clk 0:02:53.7]} 3... Nf6 {[%clk 0:02:59.8]}
4. Nc3 {[%clk 0:02:51.3]} 4... Be7 {[%clk 0:02:57.3]} 5. Bg5 {[%clk 0:02:46.9]}
5... O-O {[%clk 0:02:56.8]} 6. e3 {[%clk 0:02:46.4]} 6... Nbd7 {[%clk
0:02:55.8]} 7. Bd3 {[%clk 0:02:45.2]} 7... c6 {[%clk 0:02:55.2]} 8. O-O {[%clk
0:02:44.2]} 8... dxc4 {[%clk 0:02:54.5]} 9. Bxc4 {[%clk 0:02:45.1]} 9... Nd5
{[%clk 0:02:54.4]} 10. Bxe7 {[%clk 0:02:42.8]} 10... Qxe7 {[%clk 0:02:55.3]} 11.
e4 {[%clk 0:02:36.1]} 11... Nxc3 {[%clk 0:02:54.8]} 12. bxc3 {[%clk 0:02:37]}
12... b6 {[%clk 0:02:54.7]} 13. Qe2 {[%clk 0:02:33.3]} 13... b5 {[%clk
0:02:48.7]} 14. Bd3 {[%clk 0:02:30.1]} 14... Bb7 {[%clk 0:02:48.9]} 15. a4
{[%clk 0:02:24.3]} 15... a6 {[%clk 0:02:49]} 16. axb5 {[%clk 0:02:22.6]} 16...
cxb5 {[%clk 0:02:47]} 17. Rfc1 {[%clk 0:02:17.6]} 17... Rfc8 {[%clk 0:02:43.9]}
18. h3 {[%clk 0:02:16.9]} 18... Nb6 {[%clk 0:02:42.2]} 19. Nd2 {[%clk
0:02:08.6]} 19... Rc7 {[%clk 0:02:34.5]} 20. c4 {[%clk 0:02:06.6]} 20... bxc4
{[%clk 0:02:33.6]} 21. Nxc4 {[%clk 0:02:06]} 21... Nxc4 {[%clk 0:02:31]} 22.
Rxc4 {[%clk 0:02:04.1]} 22... Rac8 {[%clk 0:02:30]} 23. Rac1 {[%clk 0:02:03.8]}
23... g6 {[%clk 0:02:08.8]} 24. Rxc7 {[%clk 0:01:39.5]} 24... Rxc7 {[%clk
0:02:08.3]} 25. Rxc7 {[%clk 0:01:40.1]} 25... Qxc7 {[%clk 0:02:07.3]} 26. Bxa6
{[%clk 0:01:40.1]} 26... Qc1+ {[%clk 0:02:05.9]} 27. Qf1 {[%clk 0:01:27.9]}
27... Qxf1+ {[%clk 0:02:05.1]} 28. Bxf1 {[%clk 0:01:28.8]} 28... Bxe4 {[%clk
0:02:04.9]} 29. f3 {[%clk 0:01:28.7]} 29... Bd5 {[%clk 0:02:03.1]} 30. Kf2
{[%clk 0:01:29]} 30... Kf8 {[%clk 0:02:03.8]} 31. Ke3 {[%clk 0:01:28.7]} 31...
Ke7 {[%clk 0:02:04.5]} 32. f4 {[%clk 0:01:21.4]} 32... h5 {[%clk 0:02:00.3]} 33.
g4 {[%clk 0:01:12.2]} 33... hxg4 {[%clk 0:01:57.9]} 34. hxg4 {[%clk 0:01:11.8]}
34... Kf6 {[%clk 0:01:48.4]} 35. Bb5 {[%clk 0:01:09.4]} 35... g5 {[%clk
0:01:43.2]} 36. Be8 {[%clk 0:00:57.6]} 36... gxf4+ {[%clk 0:01:41.3]} 37. Kxf4
{[%clk 0:00:58.5]} 37... Ke7 {[%clk 0:01:41.6]} 38. Bb5 {[%clk 0:00:55.6]} 38...
f6 {[%clk 0:01:41.7]} 39. g5 {[%clk 0:00:53.7]} 39... f5 {[%clk 0:01:15.3]} 40.
Ke5 {[%clk 0:00:51.9]} 40... Kf7 {[%clk 0:01:15.1]} 41. Bd7 {[%clk 0:00:38.1]}
41... Kg6 {[%clk 0:00:50.8]} 42. Bxe6 {[%clk 0:00:22.3]} 42... Bxe6 {[%clk
0:00:50.4]} 43. Kxe6 {[%clk 0:00:23.2]} 43... f4 {[%clk 0:00:50.5]} 44. d5
{[%clk 0:00:22.5]} 44... f3 {[%clk 0:00:51.2]} 45. d6 {[%clk 0:00:23.4]} 45...
f2 {[%clk 0:00:51.8]} 46. d7 {[%clk 0:00:24.3]} 46... f1=Q {[%clk 0:00:52.4]}
47. d8=Q {[%clk 0:00:25.2]} 47... Qf5+ {[%clk 0:00:45.9]} 48. Ke7 {[%clk
0:00:22.9]} 48... Qxg5+ {[%clk 0:00:44.8]} 49. Kd7 {[%clk 0:00:22.3]} 49... Qb5+
{[%clk 0:00:43.1]} 50. Kc7 {[%clk 0:00:22]} 50... Qa5+ {[%clk 0:00:41.6]} 51.
Kd7 {[%clk 0:00:22.1]} 51... Qa7+ {[%clk 0:00:38.3]} 52. Qc7 {[%clk 0:00:21]}
52... Qa1 {[%clk 0:00:31.9]} 53. Qd6+ {[%clk 0:00:19.9]} 53... Kf5 {[%clk
0:00:25.2]} 54. Qe6+ {[%clk 0:00:19.5]} 54... Kg5 {[%clk 0:00:23.5]} 55. Qd5+
{[%clk 0:00:18.5]} 55... Kf4 {[%clk 0:00:21.3]} 56. Qd6+ {[%clk 0:00:17.8]}
56... Kf3 {[%clk 0:00:20.8]} 57. Qf8+ {[%clk 0:00:16.9]} 57... Ke2 {[%clk
0:00:19.6]} 58. Qe7+ {[%clk 0:00:17]} 58... Kd3 {[%clk 0:00:19.8]} 59. Qd6+
{[%clk 0:00:17.3]} 59... Qd4 {[%clk 0:00:20]} 60. Qxd4+ {[%clk 0:00:17.3]} 60...
Kxd4 {[%clk 0:00:20]} 1/2-1/2

[Event "Early-Titled-Tuesday-Blitz-March-26-2024"]
[Site "Chess.com"]
[Date "2024.03.26"]
[Round "5"]
[White "forevery0ung"]
[Black "Bauman_Guy"]
[Result "1/2-1/2"]
[WhiteElo "2734"]
[BlackElo "2909"]
[TimeControl "180+1"]
[EndTime "8:54:44 PDT"]
[Termination "Game drawn by repetition"]

1. Nf3 {[%clk 0:03:00.9]} 1... d5 {[%clk 0:02:58.5]} 2. c4 {[%clk 0:03:01.2]}
2... c6 {[%clk 0:02:58.5]} 3. e3 {[%clk 0:03:01.7]} 3... Nf6 {[%clk 0:02:58.9]}
4. b3 {[%clk 0:03:01.7]} 4... g6 {[%clk 0:02:59.6]} 5. Bb2 {[%clk 0:03:01.3]}
5... Bg7 {[%clk 0:03:00.3]} 6. Be2 {[%clk 0:03:01.3]} 6... O-O {[%clk 0:03:01]}
7. O-O {[%clk 0:03:01.6]} 7... a6 {[%clk 0:03:01.7]} 8. Nc3 {[%clk 0:03:01.5]}
8... Bg4 {[%clk 0:03:01.6]} 9. cxd5 {[%clk 0:03:00.1]} 9... cxd5 {[%clk
0:03:01.6]} 10. Ne5 {[%clk 0:02:59.5]} 10... Bxe2 {[%clk 0:03:01.5]} 11. Nxe2
{[%clk 0:02:58.8]} 11... Nbd7 {[%clk 0:03:01.5]} 12. d3 {[%clk 0:02:56.4]} 12...
Rc8 {[%clk 0:02:56.5]} 13. Qd2 {[%clk 0:02:52.9]} 13... Nxe5 {[%clk 0:02:31.6]}
14. Bxe5 {[%clk 0:02:53.8]} 14... Ne4 {[%clk 0:02:21.8]} 15. Qb2 {[%clk
0:02:54.2]} 15... Bxe5 {[%clk 0:02:18.2]} 16. Qxe5 {[%clk 0:02:55.1]} 16... Nc5
{[%clk 0:02:19.1]} 17. Rfd1 {[%clk 0:02:52.7]} 17... e6 {[%clk 0:02:19]} 18.
Rac1 {[%clk 0:02:50.6]} 18... Nd7 {[%clk 0:02:13]} 19. Qd6 {[%clk 0:02:46.1]}
19... Nc5 {[%clk 0:02:06]} 20. Qe5 {[%clk 0:02:40]} 20... Qa5 {[%clk 0:02:02.2]}
21. Qb2 {[%clk 0:02:39.4]} 21... Nd7 {[%clk 0:01:58.9]} 22. h4 {[%clk
0:02:36.4]} 22... h5 {[%clk 0:01:58.2]} 23. Nf4 {[%clk 0:02:35.6]} 23... Qb6
{[%clk 0:01:46.1]} 24. g3 {[%clk 0:02:33.4]} 24... Qd6 {[%clk 0:01:45.2]} 25.
Qd4 {[%clk 0:01:56.5]} 25... Ne5 {[%clk 0:01:23.1]} 26. Kg2 {[%clk 0:01:53.5]}
26... Ng4 {[%clk 0:01:21.4]} 27. b4 {[%clk 0:01:44.4]} 27... Rfd8 {[%clk
0:01:13.9]} 28. Qb2 {[%clk 0:01:09.2]} 28... e5 {[%clk 0:01:12.7]} 29. Nh3
{[%clk 0:01:08.3]} 29... d4 {[%clk 0:00:53.7]} 30. e4 {[%clk 0:00:58.3]} 30...
Kg7 {[%clk 0:00:52.3]} 31. Ng5 {[%clk 0:00:58.3]} 31... f6 {[%clk 0:00:52.1]}
32. Nf3 {[%clk 0:00:58.3]} 32... b5 {[%clk 0:00:46]} 33. a3 {[%clk 0:00:57.8]}
33... Kf7 {[%clk 0:00:43.1]} 34. Nd2 {[%clk 0:00:52.8]} 34... f5 {[%clk
0:00:33.2]} 35. Nf3 {[%clk 0:00:43.4]} 35... fxe4 {[%clk 0:00:32.8]} 36. Ng5+
{[%clk 0:00:43.4]} 36... Kg7 {[%clk 0:00:33.1]} 37. Nxe4 {[%clk 0:00:43.4]}
37... Qd5 {[%clk 0:00:30.2]} 38. Rxc8 {[%clk 0:00:43.7]} 38... Rxc8 {[%clk
0:00:30.5]} 39. Rc1 {[%clk 0:00:44.3]} 39... Rf8 {[%clk 0:00:29.1]} 40. Rc7+
{[%clk 0:00:42.2]} 40... Kg8 {[%clk 0:00:27.6]} 41. Kg1 {[%clk 0:00:41.8]} 41...
Qe6 {[%clk 0:00:24.8]} 42. Qd2 {[%clk 0:00:39.8]} 42... Qf5 {[%clk 0:00:23.7]}
43. Qa2+ {[%clk 0:00:28.3]} 43... Kh8 {[%clk 0:00:23]} 44. Qe2 {[%clk
0:00:21.6]} 44... Qf3 {[%clk 0:00:21.3]} 45. Qd2 {[%clk 0:00:19.6]} 45... Kg8
{[%clk 0:00:18.1]} 46. Qg5 {[%clk 0:00:18.3]} 46... Qd1+ {[%clk 0:00:17.1]} 47.
Kg2 {[%clk 0:00:18]} 47... Ne3+ {[%clk 0:00:13.6]} 48. Kh2 {[%clk 0:00:07.6]}
48... Ng4+ {[%clk 0:00:08.4]} 49. Kg2 {[%clk 0:00:08.3]} 49... Qf3+ {[%clk
0:00:08.3]} 50. Kg1 {[%clk 0:00:08.4]} 50... Qd1+ {[%clk 0:00:06.7]} 51. Kg2
{[%clk 0:00:08.7]} 1/2-1/2

[Event "Early-Titled-Tuesday-Blitz-March-26-2024"]
[Site "Chess.com"]
[Date "2024.03.26"]
[Round "5"]
[White "Nf3c5"]
[Black "kids2010"]
[Result "0-1"]
[WhiteElo "2547"]
[BlackElo "2799"]
[TimeControl "180+1"]
[EndTime "8:54:46 PDT"]
[Termination "kids2010 won on time"]

1. e4 {[%clk 0:03:00.9]} 1... c6 {[%clk 0:02:58.3]} 2. d4 {[%clk 0:03:00.4]}
2... d5 {[%clk 0:02:58.9]} 3. exd5 {[%clk 0:03:01.1]} 3... cxd5 {[%clk
0:02:59.8]} 4. Bd3 {[%clk 0:03:01.3]} 4... Nc6 {[%clk 0:02:59.8]} 5. c3 {[%clk
0:03:01.9]} 5... g6 {[%clk 0:02:58.7]} 6. Bf4 {[%clk 0:03:00.2]} 6... Nf6 {[%clk
0:02:53.6]} 7. Nd2 {[%clk 0:02:54.7]} 7... Bf5 {[%clk 0:02:52.7]} 8. Be2 {[%clk
0:02:54.6]} 8... Bg7 {[%clk 0:02:52.2]} 9. Ngf3 {[%clk 0:02:54.7]} 9... O-O
{[%clk 0:02:52.7]} 10. O-O {[%clk 0:02:55]} 10... Rc8 {[%clk 0:02:53.3]} 11. Re1
{[%clk 0:02:54.7]} 11... a6 {[%clk 0:02:53.1]} 12. a4 {[%clk 0:02:48.5]} 12...
h6 {[%clk 0:02:46.7]} 13. h3 {[%clk 0:02:48.3]} 13... Ne4 {[%clk 0:02:46.7]} 14.
Nf1 {[%clk 0:02:40.5]} 14... Na5 {[%clk 0:02:38.6]} 15. Ne5 {[%clk 0:02:33]}
15... Nd6 {[%clk 0:02:26.7]} 16. Ne3 {[%clk 0:02:27.5]} 16... Be6 {[%clk
0:02:20.4]} 17. b4 {[%clk 0:02:21]} 17... Nc6 {[%clk 0:02:16.4]} 18. Nd3 {[%clk
0:02:17.3]} 18... Ne4 {[%clk 0:02:15.9]} 19. Rc1 {[%clk 0:02:17.2]} 19... b6
{[%clk 0:02:13.2]} 20. f3 {[%clk 0:02:07.3]} 20... Nd6 {[%clk 0:02:09.4]} 21.
Qd2 {[%clk 0:02:02.5]} 21... Kh7 {[%clk 0:02:02.6]} 22. Nf2 {[%clk 0:01:59]}
22... a5 {[%clk 0:01:34.9]} 23. b5 {[%clk 0:01:50.3]} 23... Nb8 {[%clk
0:01:34.7]} 24. Neg4 {[%clk 0:01:49.7]} 24... Nf5 {[%clk 0:01:26.4]} 25. Nd3
{[%clk 0:01:35.1]} 25... h5 {[%clk 0:01:26.1]} 26. Ngf2 {[%clk 0:01:20.7]} 26...
Nd7 {[%clk 0:01:23.1]} 27. g4 {[%clk 0:01:19.1]} 27... Nd6 {[%clk 0:01:19.5]}
28. Nb2 {[%clk 0:01:03.4]} 28... Nf6 {[%clk 0:01:11.4]} 29. Bd3 {[%clk
0:01:02.7]} 29... Qd7 {[%clk 0:01:05.3]} 30. Kg2 {[%clk 0:01:02.3]} 30... Nc4
{[%clk 0:01:03.3]} 31. Nxc4 {[%clk 0:01:00.3]} 31... dxc4 {[%clk 0:01:04.2]} 32.
Bc2 {[%clk 0:00:59.7]} 32... Rce8 {[%clk 0:00:41.9]} 33. Bg5 {[%clk 0:00:54.9]}
33... Nd5 {[%clk 0:00:37.8]} 34. gxh5 {[%clk 0:00:50.9]} 34... Bf5 {[%clk
0:00:35.5]} 35. Be4 {[%clk 0:00:45.7]} 35... f6 {[%clk 0:00:14.3]} 36. hxg6+
{[%clk 0:00:38]} 36... Bxg6 {[%clk 0:00:13.9]} 37. Be3 {[%clk 0:00:28.9]} 37...
f5 {[%clk 0:00:12.9]} 38. Bxd5 {[%clk 0:00:25.4]} 38... Qxd5 {[%clk 0:00:13.8]}
39. Bf4 {[%clk 0:00:24.5]} 39... Bf6 {[%clk 0:00:09.9]} 40. Qe3 {[%clk 0:00:16]}
40... Bh5 {[%clk 0:00:09.7]} 41. h4 {[%clk 0:00:11.6]} 41... Rg8+ {[%clk
0:00:10.1]} 42. Bg5 {[%clk 0:00:12.1]} 42... Rg6 {[%clk 0:00:06.7]} 43. Kg3
{[%clk 0:00:10.8]} 43... Reg8 {[%clk 0:00:06.9]} 44. f4 {[%clk 0:00:10.6]} 44...
R6g7 {[%clk 0:00:04.7]} 45. Rg1 {[%clk 0:00:06.8]} 45... Rd8 {[%clk 0:00:05.2]}
46. Kh3 {[%clk 0:00:06.4]} 46... Rd6 {[%clk 0:00:05.4]} 47. Rg3 {[%clk
0:00:06.6]} 47... Re6 {[%clk 0:00:05.3]} 48. Qd2 {[%clk 0:00:01.9]} 48... Re2
{[%clk 0:00:06.1]} 49. Qd1 {[%clk 0:00:01.7]} 49... Bxg5 {[%clk 0:00:05.3]} 0-1